bitfinex-derivatives/quotes_SOLF0:USTF0_20220102
["timestamp","ask_amount","ask_price","bid_price","bid_amount"]
[1641166779956,2.74556155,176.11,176.07,4.032998]
[1641166780558,2.74556155,176.11,176.08,4.032998]
[1641166781258,2.74556155,176.11,176.07,4.032998]
[1641166782061,2.74556155,176.11,176.06,5.32042161]
[1641166783062,12.75721185,176.11,176.05,52.745798]
[1641166783264,12.75721185,176.11,176.05,4.032998]
[1641166784261,12.75721185,176.11,175.99,52.724]
[1641166784463,85.13059095,176.1,176.02,4.03414734]
[1641166784664,27.66479,176.09,176.02,4.03414734]
[1641166784865,32.80879,176.09,176.02,4.03414734]
[1641166785364,12.75721185,176.08,176.01,1.28731038]
[1641166786466,12.75721185,176.08,176.01,4.03451725]
[1641166787367,12.75721185,176.08,176.02,4.03426623]
[1641166787768,12.75721185,176.08,176.02,7.03426623]
[1641166787968,12.75721185,176.08,176.02,4.03426623]
[1641166788167,12.75721185,176.08,176.03,4.03400378]
[1641166788568,12.75721185,176.08,176.04,27.66479]
[1641166789070,12.75721185,176.08,176.04,31.69848289]
[1641166789272,12.75721185,176.09,176.04,31.69848289]
[1641166789470,12.75721185,176.09,176.04,4.03369289]
[1641166789769,12.75721185,176.09,176.03,5.373]
[1641166789969,45.0369028,176.11,176.03,9.40683706]
[1641166790871,45.0369028,176.11,176.03,5.373]
[1641166791071,45.0369028,176.11,176.02,30.66479]
[1641166791275,45.0369028,176.11,176.02,27.66479]
[1641166791471,12.10117119,176.08,176.04,5.3210876]
[1641166792173,12.75721185,176.11,176.03,1.28735974]
[1641166792372,6.027,176.08,176.03,1.28735974]
[1641166793171,6.027,176.08,176.02,27.66479]
[1641166793371,2.74556155,176.07,176.04,4.03375771]
[1641166794174,12.10127314,176.08,176.02,30.66479]
[1641166794475,12.10127314,176.08,176.03,1.28736179]
[1641166794974,12.75803305,176.09,176.04,4.03175244]
[1641166795974,12.09539504,176.08,176.03,56.93919835]
[1641166796675,12.09539504,176.08,176.04,5.3184742]
[1641166797279,12.75803305,176.09,176.03,52.9074]
[1641166797980,12.0952275,176.08,176.04,5.31846792]
[1641166798783,12.75803305,176.09,176.03,56.93920975]
[1641166799383,12.75803305,176.09,176.03,52.9074]
[1641166799587,12.09462898,176.1,176.05,4.03154299]
[1641166800388,12.09462898,176.09,176.03,52.9074]
[1641166801985,12.09462898,176.09,176.05,4.03359413]
[1641166802485,14.84101173,176.09,176.03,52.9074]
[1641166803487,14.84101173,176.09,176.05,4.03358179]
[1641166804089,14.84101173,176.09,176.03,52.9074]
[1641166805289,14.84101173,176.09,176.05,4.03358584]
[1641166806092,14.84101173,176.09,176.03,52.9074]
[1641166807094,14.84101173,176.09,176.05,4.03362654]
[1641166807694,14.84101173,176.09,176.03,52.9074]
[1641166808297,14.84101173,176.09,176.03,55.9074]
[1641166808495,14.84101173,176.09,176.05,4.03359564]
[1641166809200,14.84101173,176.09,176.03,55.9074]
[1641166809697,14.84101173,176.09,176.04,3.0]
[1641166809899,14.84101173,176.09,176.05,4.03361404]
[1641166810696,14.84101173,176.09,176.05,1.28738577]
[1641166811698,35.369,176.1,176.05,4.03348937]
[1641166812800,2.74608272,176.09,176.03,55.9074]
[1641166813001,14.84649808,176.09,176.03,55.9074]
[1641166813801,35.369,176.1,176.05,4.03347375]
[1641166814702,14.84649357,176.09,176.03,55.9074]
[1641166815400,35.369,176.1,176.05,4.03345781]
[1641166816101,35.369,176.1,176.03,52.9074]
[1641166816300,14.84635182,176.09,176.03,52.9074]
[1641166817304,35.369,176.1,176.05,4.03342812]
[1641166818005,35.369,176.1,176.03,55.9074]
[1641166818203,14.84625571,176.09,176.03,55.9074]
[1641166818805,35.369,176.1,176.05,4.03342815]
[1641166819605,35.369,176.1,176.03,52.9074]
[1641166819807,2.74318655,176.09,176.04,4.02902295]
[1641166820608,53.79506884,176.1,176.04,4.02902295]
[1641166820906,53.79506884,176.1,176.04,1.28583593]
[1641166821107,18.42606884,176.1,176.04,1.28583593]
[1641166821306,12.08706884,176.1,176.04,1.28583593]
[1641166821506,2.74309262,176.09,176.05,4.02893756]
[1641166822407,12.08706884,176.11,176.04,1.28584539]
[1641166823007,12.08706884,176.11,176.03,52.9074]
[1641166823209,12.08706884,176.1,176.04,4.02900457]
[1641166823911,12.08706884,176.1,176.03,52.9074]
[1641166824210,12.08706884,176.1,176.05,4.02898429]
[1641166825110,12.08706884,176.1,176.03,52.9074]
[1641166825310,12.08706884,176.1,176.06,4.03371696]
[1641166826014,12.08706884,176.1,176.05,3.0]
[1641166826614,12.74394345,176.13,176.05,3.0]
[1641166826814,12.10005655,176.11,176.07,4.03335218]
[1641166827616,12.74394345,176.13,176.04,3.0]
[1641166828317,12.74394345,176.13,176.06,4.03353188]
[1641166828514,12.10059563,176.1,176.06,4.03353188]
[1641166829315,12.74394345,176.13,176.05,3.0]
[1641166829517,12.10008538,176.11,176.07,4.03336179]
[1641166830115,12.74394345,176.13,176.07,3.0]
[1641166830315,12.74394345,176.13,176.08,3.0]
[1641166830514,12.74394345,176.13,176.09,3.0]
[1641166830716,12.74394345,176.13,176.1,3.0]
[1641166830920,2.74308766,176.13,176.1,3.0]
[1641166831117,14.84198547,176.13,176.1,3.0]
[1641166832619,27.66479,176.14,176.11,3.0]
[1641166833423,2.7448873,176.13,176.12,5.31987033]
[1641166833621,2.7448873,176.13,176.12,8.31987033]
[1641166834022,2.7448873,176.13,176.12,5.31987033]
[1641166834521,27.66479,176.14,176.1,3.0]
[1641166835121,27.66479,176.14,176.11,3.0]
[1641166835822,2.74476237,176.13,176.12,4.03226524]
[1641166836423,27.66479,176.14,176.12,4.03226524]
[1641166836624,27.66479,176.14,176.12,1.28751301]
[1641166837424,2.74473226,176.13,176.12,4.03223787]
[1641166838226,6.846,176.15,176.12,1.2875037]
[1641166838427,27.66479,176.14,176.12,1.2875037]
[1641166838828,27.66479,176.14,176.08,12.10117119]
[1641166839029,30.41049449,176.14,176.08,8.7]
[1641166840229,12.09901379,176.12,176.08,12.7330046]
[1641166840830,12.75633093,176.13,176.08,8.7]
[1641166842030,14.84458301,176.13,176.08,12.73295951]
[1641166842732,14.84458301,176.13,176.08,8.7]
[1641166843434,12.09887852,176.12,176.08,12.73296715]
[1641166843938,12.75577451,176.13,176.08,8.7]
[1641166844834,14.84448355,176.13,176.09,5.32036311]
[1641166845634,12.09877906,176.12,176.08,12.73303508]
[1641166846234,12.75601907,176.13,176.08,8.7]
[1641166847435,12.09905919,176.12,176.08,12.73301973]
[1641166848337,12.75601907,176.13,176.08,8.7]
[1641166849137,14.84465338,176.13,176.08,12.73298296]
[1641166850037,2.74570449,176.13,176.08,8.7]
[1641166850640,2.74570449,176.13,176.08,2.24723161]
[1641166850839,4.0197469,176.11,176.08,2.24723161]
[1641166851939,4.0197469,176.11,176.1,3.0]
[1641166852242,4.0197469,176.11,176.1,6.602]
[1641166852638,4.0197469,176.11,176.1,9.602]
[1641166853040,31.6845369,176.14,176.1,9.602]
[1641166853539,31.6845369,176.14,176.1,6.602]
[1641166853738,31.6845369,176.14,176.1,9.602]
[1641166853939,27.66479,176.14,176.1,10.6217469]
[1641166854141,27.66479,176.14,176.11,3.0]
[1641166855441,27.66479,176.14,176.11,7.0197469]
[1641166856241,27.66479,176.14,176.13,4.0197469]
[1641166857443,30.38063069,176.14,176.13,4.0197469]
[1641166857943,2.71584069,176.14,176.13,4.0197469]
[1641166858146,44.12804889,176.18,176.12,1.31616672]
[1641166859252,2.71573279,176.17,176.13,4.03191308]
[1641166859452,27.66479,176.14,176.13,4.03191308]
[1641166859653,27.66479,176.14,176.13,7.03191308]
[1641166859858,30.38052279,176.17,176.13,7.03191308]
[1641166860054,30.38052279,176.17,176.14,3.0]
[1641166860252,27.66479,176.17,176.16,3.0]
[1641166860451,12.09894889,176.18,176.16,3.0]
[1641166860653,12.09894889,176.18,176.17,3.0]
[1641166860852,12.09894889,176.18,176.14,7.693]
[1641166861454,6.91014889,176.21,176.17,60.67691569]
[1641166862455,12.64213167,176.23,176.17,60.67691569]
[1641166862654,34.8875,176.27,176.17,60.67691569]
[1641166862655,12.64213167,176.26,176.2,4.03116897]
[1641166863153,15.64213167,176.26,176.2,4.03116897]
[1641166863355,34.99460523,176.25,176.17,59.36074897]
[1641166864055,2.71491428,176.24,176.17,59.36074897]
[1641166865958,2.71491428,176.24,176.18,5.3941324]
[1641166866859,2.71491428,176.24,176.18,4.03116897]
[1641166867061,34.99460523,176.25,176.17,59.36074897]
[1641166867459,34.99460523,176.25,176.17,64.04574897]
[1641166867663,34.99460523,176.25,176.21,27.66479]
[1641166867859,2.71491428,176.24,176.21,27.66479]
[1641166868661,42.20690834,176.26,176.21,27.66479]
[1641166868662,2.71491428,176.25,176.21,27.66479]
[1641166872669,3.98945243,176.26,176.21,27.66479]
[1641166873470,38.87695243,176.27,176.21,27.66479]
[1641166879873,34.8875,176.27,176.21,27.66479]
[1641166880074,12.46566676,176.26,176.21,27.66479]
[1641166882777,3.0,176.25,176.21,15.81469]
[1641166882975,9.22,176.25,176.21,15.81469]
[1641166883176,9.22,176.25,176.2,4.03116897]
[1641166883576,9.22,176.25,176.18,8.68]
[1641166883777,34.9466875,176.24,176.18,8.68]
[1641166884877,2.66699655,176.24,176.18,8.68]
[1641166885378,12.46566676,176.24,176.18,8.68]
[1641166886779,44.74535771,176.24,176.18,8.68]
[1641166888881,12.46566676,176.24,176.18,12.71116897]
[1641166891886,12.09149171,176.22,176.18,12.71116897]
[1641166892587,12.09149171,176.21,176.18,8.68]
[1641166894088,4.02174299,176.19,176.18,8.68]
[1641166897091,4.02174299,176.2,176.18,8.68]
[1641166898591,1.88873954,176.22,176.18,8.68]
[1641166898791,12.09149171,176.24,176.18,8.68]
[1641166899394,12.09149171,176.24,176.18,11.68]
[1641166899597,12.09149171,176.26,176.18,11.68]
[1641166900797,12.09149171,176.26,176.18,8.68]
[1641166902298,49.05059171,176.26,176.18,8.68]
[1641166902600,49.05059171,176.26,176.18,11.68]
[1641166902802,12.09149171,176.25,176.18,11.68]
[1641166903501,12.09149171,176.25,176.2,3.0]
[1641166903701,12.09149171,176.25,176.19,3.0]
[1641166904205,12.09149171,176.25,176.2,3.0]
[1641166904401,12.09149171,176.26,176.23,27.66479]
[1641166906402,12.09149171,176.25,176.18,8.68]
[1641166906604,12.09149171,176.25,176.18,45.4043]
[1641166907203,12.09149171,176.25,176.19,3.0]
[1641166907403,12.09149171,176.24,176.18,48.4043]
[1641166908105,12.09149171,176.25,176.18,48.4043]
[1641166908408,12.09149171,176.25,176.2,27.66479]
[1641166910808,12.09149171,176.25,176.2,21.21694534]
[1641166911609,12.09149171,176.25,176.2,24.21694534]
[1641166912213,12.09149171,176.27,176.2,24.21694534]
[1641166914911,12.09149171,176.27,176.2,21.21694534]
[1641166916516,12.09149171,176.27,176.23,27.66479]
[1641166916715,47.93189171,176.3,176.23,27.66479]
[1641166917916,35.8404,176.3,176.23,27.66479]
[1641166921317,38.8404,176.3,176.23,27.66479]
[1641166921622,47.93189171,176.3,176.23,27.66479]
[1641166922525,35.8404,176.3,176.23,27.66479]
[1641166922820,35.8404,176.3,176.23,61.77509]
[1641166924122,47.93189171,176.3,176.23,61.77509]
[1641166925621,53.85789171,176.3,176.23,61.77509]
[1641166925821,12.09149171,176.29,176.23,61.77509]
[1641166926323,12.09149171,176.29,176.23,27.66479]
[1641166926825,12.09149171,176.28,176.23,27.66479]
[1641166930425,12.09149171,176.29,176.23,27.66479]
[1641166931327,12.09149171,176.29,176.21,12.09149171]
[1641166931729,12.09149171,176.29,176.2,48.71679171]
[1641166932331,12.09149171,176.28,176.2,48.71679171]
[1641166932629,12.09149171,176.28,176.23,27.66479]
[1641166934129,12.09149171,176.28,176.2,76.38158171]
[1641166934531,12.09149171,176.28,176.2,64.29009]
[1641166935331,12.09149171,176.26,176.2,64.29009]
[1641166935530,16.61249171,176.26,176.2,64.29009]
[1641166936936,4.521,176.26,176.2,64.29009]
[1641166938937,2.56509483,176.25,176.21,1.46422287]
[1641166946544,14.65658654,176.28,176.21,1.46422287]
[1641166948744,12.09149171,176.28,176.21,1.46422287]
[1641166950250,12.09149171,176.28,176.21,6.47122287]
[1641166950446,12.09149171,176.28,176.21,9.47122287]
[1641166950947,14.65658654,176.29,176.22,1.46422287]
[1641166951148,14.65658654,176.29,176.22,29.12901287]
[1641166951346,14.65658654,176.29,176.22,32.12901287]
[1641166952148,14.65658654,176.29,176.23,1.46422287]
[1641166959155,2.56509483,176.29,176.26,4.02898173]
[1641166959356,2.56509483,176.29,176.26,10.48198173]
[1641166965060,2.56509483,176.29,176.28,4.02898173]
[1641166965461,2.56509483,176.29,176.28,31.69377173]
[1641166966059,2.56509483,176.29,176.28,27.66479]
[1641166966261,12.09149171,176.33,176.28,27.66479]
[1641166967064,12.09149171,176.33,176.29,5.48120696]
[1641166968064,2.56509483,176.34,176.3,4.02823399]
[1641166968065,14.65658654,176.34,176.3,4.02823399]
[1641166972166,14.65658654,176.34,176.28,27.66479]
[1641166972369,14.65658654,176.34,176.29,4.02814465]
[1641166973066,12.09149171,176.33,176.29,1.45301569]
[1641166973868,14.64947541,176.34,176.29,4.02812686]
[1641166974769,4.02810623,176.3,176.29,5.388]
[1641166975170,6.23e-06,176.3,176.29,5.388]
[1641166975369,12.08438058,176.34,176.29,5.388]
[1641166975569,12.08438058,176.36,176.29,6.84102048]
[1641166975769,12.08438058,176.36,176.31,3.0]
[1641166975971,12.08438058,176.36,176.3,3.0]
[1641166976571,12.08438058,176.36,176.34,27.66479]
[1641166976769,39.0672,176.39,176.34,31.91979]
[1641166976970,14.61882381,176.38,176.34,31.91979]
[1641166977672,14.61882381,176.38,176.34,27.66479]
[1641166977869,45.8892,176.39,176.34,27.66479]
[1641166978071,45.8892,176.39,176.34,21.22121002]
[1641166978671,12.08317694,176.36,176.34,21.22121002]
[1641166978871,12.08317694,176.36,176.28,39.0284]
[1641166979373,12.08317694,176.36,176.29,1.54721192]
[1641166979773,15.08317694,176.36,176.29,1.54721192]
[1641166980176,3.0,176.35,176.29,1.54721192]
[1641166980373,5.491,176.35,176.29,1.54721192]
[1641166980574,12.08317694,176.34,176.28,1.54721192]
[1641166981175,12.08317694,176.34,176.28,10.12721192]
[1641166981474,2.53845018,176.34,176.28,8.58]
[1641166982374,12.08317694,176.34,176.29,1.54721192]
[1641166987584,12.08317694,176.35,176.29,1.54721192]
[1641166989385,12.08317694,176.34,176.29,1.54721192]
[1641166989985,12.08317694,176.35,176.29,1.54721192]
[1641166990685,12.08317694,176.35,176.29,7.61121192]
[1641166992086,12.08317694,176.35,176.3,1.54721192]
[1641166994192,14.62162712,176.36,176.3,1.54721192]
[1641166996596,2.53845018,176.36,176.3,1.54721192]
[1641166997598,14.62162712,176.37,176.3,1.54721192]
[1641167000103,17.62162712,176.37,176.3,1.54721192]
[1641167000301,14.62162712,176.37,176.3,1.54721192]
[1641167000503,14.62162712,176.37,176.29,1.54721192]
[1641167000504,12.08317694,176.34,176.29,1.54721192]
[1641167001806,12.08317694,176.35,176.29,1.54721192]
[1641167004407,14.62162712,176.37,176.29,18.12370363]
[1641167004605,14.62162712,176.37,176.29,57.03500363]
[1641167005405,14.62162712,176.37,176.3,1.54721192]
[1641167005605,3.0,176.35,176.3,1.54721192]
[1641167005804,3.0,176.36,176.3,1.54721192]
[1641167006205,14.62162712,176.34,176.29,1.54721192]
[1641167006405,19.30662712,176.34,176.29,1.54721192]
[1641167006907,4.685,176.34,176.28,1.54721192]
[1641167007405,14.62162712,176.35,176.28,1.54721192]
[1641167008008,12.08317694,176.36,176.28,20.44973114]
[1641167008905,14.62162712,176.36,176.28,20.44973114]
[1641167012611,2.53845018,176.36,176.29,12.09149171]
[1641167013520,12.08317694,176.35,176.28,1.54721192]
[1641167013718,15.08317694,176.35,176.28,1.54721192]
[1641167013917,12.08317694,176.35,176.28,1.54721192]
[1641167014215,12.08317694,176.34,176.28,1.54721192]
[1641167015017,14.62162712,176.34,176.28,1.54721192]
[1641167015719,12.08317694,176.34,176.28,1.54721192]
[1641167017720,12.08317694,176.34,176.28,4.54721192]
[1641167017918,12.08317694,176.34,176.28,1.54721192]
[1641167018319,12.08317694,176.34,176.28,4.54721192]
[1641167018618,12.08317694,176.34,176.29,3.0]
[1641167018820,14.62162712,176.37,176.31,27.66479]
[1641167019718,2.53845018,176.38,176.32,1.54721192]
[1641167019921,2.53845018,176.38,176.32,37.65561192]
[1641167020720,2.53845018,176.41,176.34,12.09149171]
[1641167022826,2.53845018,176.41,176.35,27.66479]
[1641167023422,2.53845018,176.41,176.36,1.54721192]
[1641167025124,15.08317694,176.42,176.35,27.66479]
[1641167025325,8.565,176.42,176.35,27.66479]
[1641167026927,5.565,176.42,176.35,27.66479]
[1641167028230,2.4787788,176.41,176.36,1.5473878]
[1641167030532,14.56195574,176.42,176.36,1.5473878]
[1641167030732,17.56195574,176.42,176.36,1.5473878]
[1641167030933,5.4787788,176.42,176.36,1.5473878]
[1641167031932,2.4787788,176.41,176.33,20.44943502]
[1641167032835,2.4787788,176.41,176.34,12.09149171]
[1641167033533,14.56195574,176.41,176.33,20.44943502]
[1641167034133,17.56195574,176.41,176.33,20.44943502]
[1641167034633,3.0,176.4,176.33,20.44943502]
[1641167034933,3.0,176.39,176.33,20.44943502]
[1641167035137,15.08317694,176.39,176.33,1.5473878]
[1641167035335,3.0,176.38,176.33,1.5473878]
[1641167035934,12.08317694,176.36,176.32,4.02755028]
[1641167036134,18.24517694,176.36,176.32,4.02755028]
[1641167037035,27.66479,176.34,176.32,4.02755028]
[1641167037236,27.66479,176.34,176.31,4.02755028]
[1641167038036,2.4787788,176.33,176.31,4.02755028]
[1641167039440,9.162,176.36,176.31,4.02755028]
[1641167039943,2.48046833,176.35,176.32,4.02755028]
[1641167040742,12.08310763,176.35,176.31,4.02755028]
[1641167041241,2.48060908,176.35,176.31,4.02755028]
[1641167042142,9.162,176.36,176.31,4.02755028]
[1641167042342,12.08345153,176.35,176.31,4.02755028]
[1641167042945,2.48064964,176.35,176.31,4.02755028]
[1641167043842,12.08352172,176.35,176.31,4.02755028]
[1641167044343,12.29971725,176.37,176.31,4.02755028]
[1641167044545,2.48056858,176.36,176.31,4.02755028]
[1641167045247,12.0833902,176.35,176.31,4.02755028]
[1641167047050,2.48056858,176.35,176.31,4.02755028]
[1641167047650,12.08352269,176.35,176.31,4.02755028]
[1641167048552,2.48062052,176.35,176.31,4.02755028]
[1641167049251,12.08388664,176.35,176.31,4.02755028]
[1641167050051,3.0,176.36,176.31,4.02755028]
[1641167050253,2.48073217,176.35,176.31,4.02755028]
[1641167050858,12.08384121,176.35,176.31,4.02755028]
[1641167051354,2.48068671,176.35,176.31,4.02755028]
[1641167052355,3.0,176.36,176.31,4.02755028]
[1641167052556,3.0,176.36,176.28,8.46]
[1641167053359,30.66479,176.36,176.28,8.46]
[1641167054956,2.4805219,176.35,176.32,4.02755028]
[1641167055861,30.66479,176.36,176.32,4.02755028]
[1641167056557,2.48055422,176.35,176.32,4.02755028]
[1641167057260,42.74813186,176.36,176.32,4.02755028]
[1641167057861,2.48062056,176.35,176.31,4.02755028]
[1641167058868,4.02784933,176.32,176.31,4.02755028]
[1641167059062,12.08334186,176.36,176.31,4.02755028]
[1641167059262,12.08334186,176.36,176.31,9.38955028]
[1641167059663,2.44352117,176.38,176.32,12.09149171]
[1641167059867,2.44352117,176.38,176.32,39.75628171]
[1641167060863,2.44310456,176.39,176.33,20.44983345]
[1641167061765,2.44288738,176.4,176.33,20.44983345]
[1641167061964,2.44288738,176.4,176.34,12.09149171]
[1641167062666,15.07938142,176.42,176.34,12.09149171]
[1641167062866,2.44281898,176.41,176.34,41.24229171]
[1641167063465,3.0,176.42,176.34,41.24229171]
[1641167063670,15.07937142,176.42,176.35,1.54722934]
[1641167064270,2.44293689,176.41,176.35,1.54722934]
[1641167064969,15.07954592,176.42,176.35,1.54722934]
[1641167065668,2.44295631,176.41,176.35,1.54722934]
[1641167066470,3.0,176.41,176.35,1.54722934]
[1641167066671,30.66479,176.41,176.35,1.54722934]
[1641167067169,2.44326098,176.4,176.35,1.54722934]
[1641167067770,42.74433592,176.41,176.35,1.54722934]
[1641167067970,12.07954592,176.4,176.35,1.54722934]
[1641167068772,12.07954592,176.39,176.35,1.54722934]
[1641167069572,2.44356804,176.4,176.35,1.54722934]
[1641167069773,14.52451261,176.4,176.35,1.54722934]
[1641167072582,2.44356804,176.4,176.35,1.54722934]
[1641167073383,30.66479,176.41,176.34,29.1508]
[1641167074184,24.22209936,176.41,176.34,29.1508]
[1641167076485,21.22209936,176.41,176.34,29.1508]
[1641167076688,3.0,176.41,176.34,29.1508]
[1641167077086,9.906,176.42,176.34,29.1508]
[1641167077289,3.0,176.41,176.34,29.1508]
[1641167077487,5.48833143,176.41,176.34,29.1508]
[1641167077787,3.0,176.4,176.34,29.1508]
[1641167078188,3.0,176.39,176.34,29.1508]
[1641167078789,3.0,176.39,176.28,36.12479]
[1641167078991,32.2512,176.39,176.29,31.8098]
[1641167079794,2.48895352,176.38,176.3,1.51774314]
[1641167079993,7.99595352,176.38,176.3,1.51774314]
[1641167080395,5.507,176.38,176.3,1.51774314]
[1641167081997,14.58281859,176.37,176.3,1.51774314]
[1641167084299,2.50187402,176.37,176.3,1.51774314]
[1641167085098,14.58281859,176.38,176.3,1.51774314]
[1641167085701,2.50187402,176.38,176.31,12.09149171]
[1641167087100,14.58281859,176.38,176.3,20.3621753]
[1641167089604,14.58281859,176.38,176.31,12.09149171]
[1641167089802,2.50187402,176.38,176.31,12.09149171]
[1641167096607,7.402e-05,176.38,176.32,3.0]
[1641167096807,12.08094457,176.43,176.34,15.09149171]
[1641167097007,12.08094457,176.43,176.35,30.311]
[1641167097208,12.08094457,176.43,176.36,27.66479]
[1641167097607,33.3622,176.45,176.36,46.50922216]
[1641167098006,30.3622,176.45,176.36,46.50922216]
[1641167098808,30.3622,176.45,176.36,39.75628171]
[1641167099006,42.44314457,176.45,176.36,27.66479]
[1641167100108,45.44314457,176.45,176.36,27.66479]
[1641167100311,42.44314457,176.45,176.36,27.66479]
[1641167101211,42.74573457,176.46,176.36,39.75628171]
[1641167101508,39.74573457,176.46,176.37,3.0]
[1641167101909,39.74573457,176.46,176.36,42.75628171]
[1641167102110,27.66479,176.46,176.38,12.09149171]
[1641167103010,27.66479,176.46,176.39,12.09149171]
[1641167103212,27.66479,176.46,176.39,39.75628171]
[1641167103812,27.66479,176.46,176.4,12.09149171]
[1641167105416,12.08094457,176.48,176.41,5.6615524]
[1641167106419,12.08094457,176.52,176.44,12.09149171]
[1641167106616,12.08094457,176.52,176.45,31.4224]
[1641167107315,3.0,176.54,176.45,31.4224]
[1641167107316,12.08094457,176.53,176.46,27.66479]
[1641167107517,15.08094457,176.53,176.46,27.66479]
[1641167107715,12.08094457,176.53,176.46,27.66479]
[1641167110819,12.08094457,176.52,176.46,27.66479]
[1641167111019,18.51894457,176.52,176.46,27.66479]
[1641167112724,6.438,176.52,176.46,27.66479]
[1641167116526,3.0,176.54,176.46,27.66479]
[1641167116729,3.0,176.55,176.46,27.66479]
[1641167117625,3.0,176.54,176.46,27.66479]
[1641167118028,3.0,176.53,176.46,27.66479]
[1641167118426,9.365,176.54,176.46,27.66479]
[1641167118626,3.0,176.53,176.46,27.66479]
[1641167118826,9.365,176.54,176.46,27.66479]
[1641167119629,3.0,176.53,176.46,27.66479]
[1641167120028,9.365,176.54,176.46,27.66479]
[1641167124033,6.365,176.54,176.46,27.66479]
[1641167124234,34.6458,176.56,176.46,27.66479]
[1641167124433,34.6458,176.56,176.47,30.5832]
[1641167125032,31.6458,176.56,176.47,30.5832]
[1641167127237,12.08094457,176.54,176.5,3.97119902]
[1641167132846,3.0,176.53,176.5,3.97119902]
[1641167133247,3.0,176.52,176.5,3.97119902]
[1641167133447,15.08094457,176.54,176.5,3.97119902]
[1641167133647,12.08094457,176.54,176.5,3.97119902]
[1641167134748,12.08094457,176.53,176.49,3.97119902]
[1641167136349,3.0,176.5,176.49,3.97119902]
[1641167136550,6.202,176.5,176.49,3.97119902]
[1641167137551,8.67793905,176.5,176.48,3.97119902]
[1641167138351,6.202,176.5,176.48,3.97119902]
[1641167138551,6.202,176.5,176.49,3.97119902]
[1641167139655,8.67774009,176.5,176.49,3.97119902]
[1641167140454,6.202,176.5,176.49,3.97119902]
[1641167141754,8.67763694,176.5,176.49,3.97119902]
[1641167142362,6.202,176.5,176.49,3.97119902]
[1641167142555,12.07185612,176.54,176.49,3.97119902]
[1641167143055,2.47566227,176.5,176.49,3.97119902]
[1641167143254,6.78366227,176.5,176.49,3.97119902]
[1641167143855,4.308,176.5,176.49,3.97119902]
[1641167144657,6.78367258,176.5,176.49,3.97119902]
[1641167145458,4.308,176.5,176.49,3.97119902]
[1641167145659,9.28446216,176.54,176.49,3.97119902]
[1641167146159,12.28446216,176.54,176.49,3.97119902]
[1641167146360,2.47568341,176.5,176.48,3.97119902]
[1641167147062,9.28446216,176.54,176.49,3.97119902]
[1641167147263,12.07153013,176.53,176.49,3.97119902]
[1641167147462,18.95953013,176.53,176.49,3.97119902]
[1641167148262,2.4754414,176.52,176.49,3.97119902]
[1641167148965,12.07212883,176.52,176.48,3.97119902]
[1641167149666,3.0,176.51,176.48,3.97119902]
[1641167149968,3.0,176.51,176.49,3.97119902]
[1641167150266,6.19,176.51,176.49,3.97119902]
[1641167150467,9.19,176.51,176.49,3.97119902]
[1641167150670,2.47564089,176.5,176.49,3.97119902]
[1641167151371,3.0,176.52,176.49,3.97119902]
[1641167151570,12.07198417,176.52,176.48,3.97119902]
[1641167152170,2.47567722,176.52,176.48,3.97119902]
[1641167152378,8.55967722,176.52,176.48,3.97119902]
[1641167153169,18.15620092,176.52,176.48,3.97119902]
[1641167153969,6.084,176.52,176.48,3.97119902]
[1641167154172,2.47533775,176.51,176.49,3.97119902]
[1641167154974,12.07124744,176.54,176.47,1.54835674]
[1641167155175,2.4751144,176.54,176.47,20.45136373]
[1641167155874,14.54636813,176.55,176.51,4.02355182]
[1641167158078,12.07124744,176.54,176.5,4.02355182]
[1641167158977,2.47512069,176.54,176.5,4.02355182]
[1641167160179,3.0,176.53,176.52,4.02355182]
[1641167160479,9.24593272,176.55,176.52,4.02355182]
[1641167160881,2.47520622,176.53,176.5,4.02355182]
[1641167161681,2.47511111,176.54,176.51,4.02355182]
[1641167162480,18.84162934,176.55,176.51,4.02355182]
[1641167163281,2.47513552,176.54,176.51,4.02355182]
[1641167164380,18.84162934,176.55,176.51,4.02355182]
[1641167165380,2.47491434,176.54,176.51,4.02355182]
[1641167166281,32.92,176.58,176.51,4.02355182]
[1641167166482,9.28203461,176.57,176.51,4.02355182]
[1641167167082,12.06965939,176.56,176.52,4.02355182]
[1641167168180,14.54441485,176.56,176.52,4.02355182]
[1641167169785,2.47475546,176.56,176.53,4.02355182]
[1641167170384,3.0,176.55,176.53,4.02355182]
[1641167170584,2.47475546,176.56,176.53,4.02355182]